bitfinex-derivatives/quotes_SOLF0:USTF0_20260302
["timestamp","ask_amount","ask_price","bid_price","bid_amount"]
[1772472850586,10.249,87.796,87.756,6.36787886]
[1772472850988,2.58177242,87.801,87.732,6.36787886]
[1772472851392,2.58177242,87.801,87.735,6.36787886]
[1772472852382,10.25,87.788,87.737,6.36787886]
[1772472852987,10.251,87.781,87.739,6.36787886]
[1772472853388,2.58177242,87.801,87.739,6.36787886]
[1772472853580,10.249,87.796,87.748,6.36787886]
[1772472854690,10.248,87.803,87.76,6.36787886]
[1772472854888,11.37,87.816,87.76,6.36787886]
[1772472855288,2.51939275,87.847,87.785,6.36787886]
[1772472855686,2.51939275,87.847,87.788,6.36787886]
[1772472856487,10.246,87.827,87.788,6.36787886]
[1772472856793,2.51939275,87.847,87.788,6.36787886]
[1772472857286,10.245,87.835,87.788,6.36787886]
[1772472858693,2.51939275,87.847,87.79,5.81672351]
[1772472859192,10.243,87.846,87.793,5.81672351]
[1772472859496,2.38861722,87.879,87.793,5.81672351]
[1772472860191,2.31807913,87.855,87.793,5.81672351]
[1772472860690,2.30231892,87.831,87.779,10.251]
[1772472861302,2.30231892,87.831,87.783,10.251]
[1772472861499,2.30231892,87.831,87.784,5.81672351]
[1772472861901,2.31708368,87.829,87.776,10.252]
[1772472862603,12.54669904,87.828,87.768,16.06872351]
[1772472862802,12.54669904,87.828,87.769,5.81672351]
[1772472863202,2.30169904,87.828,87.773,5.81672351]
[1772472863800,2.30169904,87.828,87.756,5.81672351]
[1772472864003,10.248,87.805,87.756,5.81672351]
[1772472864203,2.31988145,87.804,87.741,36.31717377]
[1772472864405,2.31988145,87.804,87.742,5.81672351]
[1772472864806,10.25,87.791,87.742,5.81672351]
[1772472868204,10.251,87.783,87.742,5.81672351]
[1772472868712,2.31988145,87.804,87.742,5.81672351]
[1772472869809,10.251,87.777,87.742,5.81672351]
[1772472870400,10.25,87.786,87.742,5.81672351]
[1772472870599,2.45263655,87.819,87.742,5.81672351]
[1772472871003,10.25,87.788,87.742,5.81672351]
[1772472871207,2.45263684,87.805,87.742,5.81672351]
[1772472871509,2.45263684,87.805,87.741,36.31717377]
[1772472871510,2.45263684,87.805,87.746,5.81672351]
[1772472873709,10.251,87.781,87.746,5.81672351]
[1772472873911,10.251,87.781,87.741,36.31717377]
[1772472874310,10.251,87.781,87.741,42.13389728]
[1772472874714,10.25,87.789,87.742,5.81672351]
[1772472875110,2.4689182,87.804,87.742,5.81672351]
[1772472876219,2.43735492,87.802,87.742,5.81672351]
[1772472876416,10.251,87.784,87.742,5.81672351]
[1772472877413,10.251,87.778,87.742,5.81672351]
[1772472879622,10.251,87.778,87.741,36.31717377]
[1772472879623,10.253,87.763,87.741,36.31717377]
[1772472879813,2.38052334,87.774,87.741,36.31717377]
[1772472881116,10.252,87.77,87.741,36.31717377]
[1772472882318,2.77000318,87.77,87.741,36.31717377]
[1772472882513,2.77000318,87.77,87.726,5.81672351]
[1772472882917,10.254,87.752,87.711,5.81672351]
[1772472884020,10.254,87.752,87.662,21.0514064]
[1772472884021,2.77000318,87.8,87.741,5.81672351]
[1772472884325,2.77000318,87.8,87.751,5.81672351]
[1772472884521,2.36176899,87.804,87.751,5.81672351]
[1772472885323,10.25,87.792,87.751,5.81672351]
[1772472886922,2.36176899,87.804,87.751,5.81672351]
[1772472887623,10.251,87.783,87.751,5.81672351]
[1772472887826,2.36176899,87.804,87.736,6.08565183]
[1772472888117,10.252,87.773,87.736,6.08565183]
[1772472888316,2.38214186,87.786,87.709,6.08565183]
[1772472888517,2.38214186,87.786,87.719,6.08565183]
[1772472888714,10.253,87.766,87.719,6.08565183]
[1772472890122,10.254,87.758,87.719,6.08565183]
[1772472890518,2.38214186,87.786,87.719,6.08565183]
[1772472890721,10.254,87.759,87.719,6.08565183]
[1772472892327,2.38214186,87.786,87.721,6.08565183]
[1772472893122,10.252,87.775,87.724,6.08565183]
[1772472893323,2.38214186,87.786,87.708,6.08565183]
[1772472894534,10.253,87.763,87.712,6.08565183]
[1772472895130,2.29123624,87.776,87.712,6.08565183]
[1772472895733,2.29123624,87.776,87.697,6.08565183]
[1772472896927,10.254,87.752,87.698,6.08565183]
[1772472898737,2.26475268,87.775,87.713,6.08565183]
[1772472899034,10.253,87.761,87.713,6.08565183]
[1772472900327,10.252,87.772,87.715,6.08565183]
[1772472901032,2.26475268,87.775,87.718,6.08565183]
[1772472901337,2.26475268,87.775,87.691,6.08565183]
[1772472902136,10.255,87.75,87.708,6.08565183]
[1772472903228,10.255,87.75,87.711,6.08565183]
[1772472903939,2.23001987,87.775,87.714,6.08565183]
[1772472904536,2.23001987,87.775,87.697,6.08565183]
[1772472905129,20.503,87.78,87.674,50.74817296]
[1772472905130,2.63700459,87.76,87.699,6.08565183]
[1772472905534,2.63700459,87.76,87.684,6.08565183]
[1772472905734,10.261,87.697,87.664,327.21693438]
[1772472906036,2.6277573,87.704,87.664,327.21693438]
[1772472906236,10.261,87.697,87.664,327.21693438]
[1772472907435,2.84481119,87.749,87.665,6.08565183]
[1772472908033,10.257,87.731,87.674,6.08565183]
[1772472908238,2.84481119,87.749,87.674,6.08565183]
[1772472909336,2.84481119,87.749,87.68,6.08565183]
[1772472910137,2.84481119,87.749,87.682,6.08565183]
[1772472910740,10.256,87.735,87.682,6.08565183]
[1772472911540,10.256,87.735,87.685,6.08565183]
[1772472911847,2.84481119,87.749,87.685,6.08565183]
[1772472912148,10.255,87.746,87.685,6.08565183]
[1772472912347,2.84481119,87.749,87.685,6.08565183]
[1772472912848,10.257,87.732,87.685,6.08565183]
[1772472914350,10.258,87.724,87.685,6.08565183]
[1772472914543,2.84481119,87.749,87.685,6.08565183]
[1772472914948,6.92764886,87.76,87.687,6.08565183]
[1772472915147,2.72819196,87.767,87.687,6.08565183]
[1772472915651,2.72819196,87.767,87.696,6.08565183]
[1772472915652,10.255,87.744,87.696,6.08565183]
[1772472916149,2.69135362,87.765,87.696,6.08565183]
[1772472916845,2.69135362,87.765,87.699,5.49236812]
[1772472917247,2.68058742,87.739,87.664,327.21693438]
[1772472917448,2.68127449,87.714,87.656,5.49236812]
[1772472919354,10.26,87.705,87.656,5.49236812]
[1772472919948,20.509,87.752,87.656,5.49236812]
[1772472919949,2.50793591,87.738,87.656,5.49236812]
[1772472920651,10.257,87.731,87.674,5.84964221]
[1772472921547,10.257,87.731,87.673,10.264]
[1772472921548,10.257,87.731,87.678,5.84964221]
[1772472922545,2.37822372,87.76,87.678,5.84964221]
[1772472924352,2.37822372,87.76,87.672,10.48065055]
[1772472924353,10.255,87.751,87.704,5.84964221]
[1772472924551,2.40118871,87.777,87.704,5.84964221]
[1772472924749,18.31764886,87.79,87.704,5.84964221]
[1772472924750,2.40118871,87.767,87.704,5.84964221]
[1772472924949,10.254,87.758,87.706,5.84964221]
[1772472925653,10.255,87.751,87.706,5.84964221]
[1772472927657,10.253,87.76,87.708,5.84964221]
[1772472928458,10.252,87.772,87.711,10.259]
[1772472928657,10.252,87.772,87.712,5.84964221]
[1772472929656,2.356123,87.767,87.712,5.84964221]
[1772472929955,2.356123,87.767,87.68,5.84964221]
[1772472930158,2.356123,87.767,87.703,10.26]
[1772472930362,6.92764886,87.77,87.696,5.84964221]
[1772472930363,2.35216281,87.758,87.696,5.84964221]
[1772472930863,2.35216281,87.758,87.706,5.84964221]
[1772472932363,2.35216281,87.758,87.707,10.26]
[1772472932861,10.254,87.757,87.706,5.84964221]
[1772472933062,2.35216281,87.758,87.706,5.84964221]
[1772472933360,2.35216281,87.758,87.708,10.259]
[1772472933565,2.35216281,87.758,87.706,5.84964221]
[1772472934360,2.35216281,87.758,87.715,10.259]
[1772472934562,10.252,87.773,87.716,5.84964221]
[1772472935362,10.252,87.771,87.718,10.258]
[1772472936166,2.25030189,87.772,87.716,5.84964221]
[1772472936167,10.253,87.764,87.716,5.84964221]
[1772472938370,10.253,87.762,87.716,5.84964221]
[1772472938567,2.04173358,87.784,87.716,5.84964221]
[1772472938871,488.24547774,87.816,87.731,5.84964221]
[1772472939071,2.04173358,87.816,87.761,5.84964221]
[1772472939465,12.28873358,87.816,87.761,5.84964221]
[1772472939668,2.04173358,87.816,87.761,5.84964221]
[1772472939867,2.03538704,87.849,87.761,5.84964221]
[1772472940265,10.246,87.82,87.761,5.84964221]
[1772472940664,2.04103923,87.829,87.761,5.84964221]
[1772472941570,10.247,87.817,87.763,5.84964221]
[1772472942472,10.246,87.826,87.772,5.84964221]
[1772472943171,301.24607997,87.851,87.74,6.92764886]
[1772472943172,10.245,87.834,87.782,5.84964221]
[1772472945674,2.06309701,87.831,87.765,5.84964221]
[1772472945971,10.245,87.836,87.765,5.84964221]
[1772472946166,301.24607997,87.851,87.783,5.84964221]
[1772472947277,10.243,87.846,87.791,5.87892357]
[1772472947478,301.24607997,87.851,87.791,5.87892357]
[1772472948074,301.24607997,87.851,87.748,10.61473791]
[1772472948075,39.49295429,87.894,87.8,6.92764886]
[1772472948866,39.49295429,87.883,87.8,6.92764886]
[1772472949070,39.49295429,87.883,87.782,466.45507557]
[1772472949071,39.49295429,87.883,87.782,445.95307557]
[1772472950379,49.36667777,87.863,87.802,10.248]
[1772472950572,39.12567777,87.862,87.802,10.248]
[1772472950874,39.12567777,87.862,87.81,10.247]
[1772472951180,39.12567777,87.862,87.782,445.95307557]
[1772472951380,39.12368834,87.899,87.79,6.91444905]
[1772472951569,39.12368834,87.872,87.818,10.247]
[1772472952079,39.12368834,87.872,87.828,10.245]
[1772472952677,10.239,87.883,87.828,10.245]
[1772472952873,39.09596967,87.876,87.79,6.91444905]
[1772472953186,39.09596967,87.876,87.782,445.95307557]
[1772472953473,39.0938987,87.856,87.782,445.95307557]
[1772472953981,159.233,87.91,87.773,332.05026288]
[1772472953982,39.0938987,87.839,87.773,332.05026288]
[1772472954174,6.91444905,87.82,87.71,6.91444905]
[1772472954377,39.1191099,87.819,87.71,6.91444905]
[1772472954580,39.1191099,87.819,87.757,10.254]
[1772472955580,39.1191099,87.819,87.713,159.589]
[1772472955882,39.1191099,87.819,87.712,159.592]
[1772472956979,39.1191099,87.819,87.71,6.91444905]
[1772472957281,39.1191099,87.819,87.71,68.91444905]
[1772472957472,39.14080333,87.8,87.71,6.91444905]
[1772472958281,39.13816826,87.797,87.75,10.255]
[1772472958782,39.13816826,87.797,87.71,6.91444905]
[1772472959376,39.13816826,87.797,87.745,10.255]
[1772472959579,39.13816826,87.797,87.71,6.91444905]
[1772472959580,39.1364767,87.816,87.71,6.91444905]
[1772472959778,39.1364767,87.816,87.73,6.91444905]
[1772472959981,39.09392361,87.808,87.73,6.91444905]
[1772472960180,39.09392361,87.808,87.71,6.91444905]
[1772472961480,27.40044905,87.85,87.71,6.91444905]
[1772472961481,39.09209153,87.806,87.71,6.91444905]
[1772472961887,39.08243105,87.797,87.733,10.257]
[1772472962480,39.08243105,87.791,87.74,10.256]
[1772472963681,39.08243105,87.791,87.747,10.255]
[1772472963883,39.08243105,87.791,87.71,6.91444905]
[1772472964588,39.08243105,87.791,87.705,20.52]
[1772472965284,39.06863293,87.787,87.736,10.256]
[1772472966382,39.06863293,87.787,87.69,6.91444905]
[1772472966982,39.06863293,87.787,87.704,20.52]
[1772472967179,21.51640102,87.841,87.704,20.52]
[1772472967180,6.91444905,87.83,87.71,6.91444905]
[1772472968186,10.247,87.813,87.76,10.253]
[1772472969190,30.19073841,87.812,87.711,159.592]
[1772472969490,471.77942178,87.842,87.756,159.51]
[1772472969690,248.1181767,87.93,87.796,20.499]
[1772472969691,6.91444905,87.91,87.796,20.499]
[1772472969887,6.91444905,87.89,87.79,6.91444905]
[1772472970281,11.39,87.889,87.79,6.91444905]
[1772472971387,21.56489708,87.877,87.79,6.91444905]
[1772472971590,21.56489708,87.877,87.81,6.91444905]
[1772472972790,21.56489708,87.877,87.847,10.243]
[1772472973291,21.55485549,87.905,87.81,6.91444905]
[1772472973794,21.55485549,87.905,87.855,10.242]
[1772472974091,21.55485549,87.905,87.811,20.495]
[1772472974292,21.55485549,87.905,87.857,10.242]
[1772472974589,21.55485549,87.905,87.786,10.49550693]
[1772472974789,21.55734583,87.889,87.829,10.245]
[1772472975493,21.55479142,87.885,87.78,6.91444905]
[1772472976090,21.55479142,87.885,87.729,159.559]
[1772472976091,21.72329054,87.862,87.76,440.15550306]
[1772472976490,21.72329054,87.849,87.76,433.24105401]
[1772472976887,21.72329054,87.847,87.76,433.24105401]
[1772472977294,21.72329054,87.847,87.76,440.15550306]
[1772472977884,21.72329054,87.847,87.795,10.249]
[1772472978489,21.72329054,87.847,87.783,10.251]
[1772472979393,21.72329054,87.847,87.793,10.25]
[1772472979795,21.72329054,87.847,87.764,10.49550693]
[1772472980294,21.72329054,87.847,87.765,10.49550693]
[1772472980495,21.7503541,87.867,87.78,6.91444905]
[1772472981599,21.74900925,87.866,87.766,10.49550693]
[1772472981799,21.74900925,87.866,87.76,440.15550306]
[1772472981995,21.75016278,87.849,87.76,433.24105401]
[1772472982696,21.75016278,87.827,87.768,10.252]
[1772472983596,21.75016278,87.827,87.777,10.251]
[1772472983989,21.73591699,87.845,87.787,10.25]
[1772472984389,21.73591699,87.845,87.76,440.15550306]
[1772472984590,21.73591699,87.845,87.76,450.65100999]
[1772472984797,21.73591699,87.845,87.794,10.249]
[1772472985097,6.91444905,87.87,87.76,450.65100999]
[1772472985098,21.73459286,87.869,87.77,10.49550693]
[1772472985297,21.73459286,87.869,87.771,10.49550693]
[1772472985492,21.73459286,87.865,87.78,6.91444905]
[1772472987202,21.72959948,87.864,87.813,10.247]
[1772472988102,21.72959948,87.864,87.822,10.246]
[1772472988504,21.72800741,87.885,87.8,6.91444905]
[1772472989605,21.72673171,87.883,87.837,10.244]
[1772472989801,21.72673171,87.883,87.8,6.91444905]
[1772472991198,21.72433823,87.872,87.828,10.245]
[1772472992301,21.72433823,87.872,87.819,10.246]
[1772472993305,301.95900576,87.91,87.78,6.91444905]
[1772472993306,21.72266237,87.862,87.78,6.91444905]
[1772472994304,21.72791091,87.859,87.78,6.91444905]
[1772472995206,21.72791091,87.859,87.81,10.248]
[1772472995505,21.72674934,87.857,87.81,10.248]
[1772472996003,11.39,87.9,87.78,6.91444905]
[1772472996004,21.72524739,87.897,87.82,6.91444905]
[1772472996400,21.72524739,87.897,87.84,6.91444905]
[1772472997202,21.72524739,87.897,87.856,10.242]
[1772472997510,21.72524739,87.897,87.82,6.91444905]
[1772472998400,21.66535323,87.926,87.84,6.91444905]
[1772472998904,21.66535323,87.924,87.873,10.24]
[1772472999800,21.66404121,87.918,87.83,68.91444905]
[1772473000402,21.66404121,87.918,87.87,10.24]
[1772473000796,21.65201572,87.916,87.87,10.24]
[1772473002100,21.65201572,87.916,87.831,20.491]
[1772473002699,21.65201572,87.916,87.875,10.24]
[1772473003298,10.233,87.932,87.882,10.239]
[1772473003813,21.63193692,87.926,87.882,10.239]
[1772473004705,4.33093692,87.926,87.85,6.91444905]
[1772473004910,779.07677647,87.97,87.87,6.91444905]
[1772473005110,10.23,87.959,87.87,6.91444905]
[1772473005306,6.91444905,87.98,87.87,6.91444905]
[1772473005509,52.59497095,87.987,87.89,6.91444905]
[1772473005712,10.229,87.969,87.89,6.91444905]
[1772473006103,52.59497095,87.987,87.926,10.234]
[1772473006302,10.229,87.973,87.89,6.91444905]
[1772473006911,13.16247317,87.969,87.917,10.235]
[1772473007707,13.16247317,87.999,87.91,6.91444905]
[1772473008013,23.39137736,87.988,87.91,6.91444905]
[1772473008206,13.16437736,87.987,87.938,10.233]
[1772473008414,13.16437736,87.987,87.91,6.91444905]
[1772473009513,165.87744905,88.06,87.95,6.91444905]
[1772473009514,13.16352771,88.059,87.95,6.91444905]
[1772473009710,13.16352771,88.059,87.97,6.91444905]
[1772473010116,13.21995867,88.045,87.987,10.227]
[1772473010720,13.21995867,88.045,87.996,10.226]
[1772473011020,53.60956934,88.072,88.01,2.6725001]
[1772473011315,53.60956934,88.072,87.952,34.17]
[1772473011316,6.91444905,88.07,87.984,2.6725001]
[1772473011517,53.60956934,88.072,87.991,2.73969362]
[1772473012011,53.60956934,88.072,87.971,2.70081047]
[1772473012209,6.91444905,88.07,87.971,2.70081047]
[1772473012617,6.88655902,88.06,87.971,2.70081047]
[1772473012823,10.222,88.031,87.971,2.70081047]
[1772473013115,7.56592455,88.03,87.971,2.70081047]
[1772473013421,7.56592455,88.018,87.95,433.05573939]
[1772473013721,7.56592455,88.018,87.961,10.23]
[1772473014614,53.60956934,88.072,87.969,2.87207619]
[1772473014615,7.56592455,88.041,87.969,2.87207619]
[1772473015219,7.56592455,88.038,87.969,2.87207619]
[1772473015815,10.221,88.037,87.969,2.87207619]
[1772473016424,17.78692455,88.037,87.969,2.87207619]
[1772473016816,7.56592455,88.036,87.95,439.94229841]
[1772473017017,7.56592455,88.036,87.951,2.99569416]
[1772473017221,7.56592455,88.036,87.967,10.229]
[1772473017915,6.88655902,88.05,87.967,10.229]
[1772473017916,17.78792455,88.031,87.967,10.229]
[1772473018116,7.56592455,88.03,87.957,10.23]
[1772473018317,10.223,88.024,87.958,3.07956938]
[1772473018719,7.56592455,88.03,87.958,3.07956938]
[1772473018919,7.56592455,88.03,87.95,439.94229841]
[1772473019122,7.56592455,88.014,87.95,433.05573939]
[1772473019527,7.56592455,88.01,87.95,433.05573939]
[1772473020223,10.225,88.004,87.95,433.05573939]
[1772473020625,7.56592455,88.003,87.929,10.234]
[1772473021132,7.56592455,87.992,87.935,10.233]
[1772473021320,7.56592455,88.029,87.935,3.26747053]
[1772473021827,7.56592455,88.02,87.935,3.26747053]
[1772473022228,10.226,87.996,87.935,3.26747053]
[1772473022527,7.56592455,88.003,87.934,337.73170841]
[1772473023222,7.56592455,87.986,87.934,337.73170841]
[1772473025023,7.56592455,88.009,87.935,3.47527824]
[1772473025727,10.226,87.995,87.935,3.47527824]
[1772473026224,10.226,87.995,87.935,13.70827824]
[1772473026424,7.56592455,87.994,87.935,13.70827824]
[1772473026626,7.56592455,87.994,87.935,3.47527824]
[1772473028027,7.56592455,87.992,87.934,337.73170841]
[1772473029324,7.56592455,87.969,87.934,337.73170841]
[1772473029822,7.56592455,87.969,87.934,309.85370841]
[1772473030028,10.23,87.963,87.934,309.85370841]
[1772473030624,6.88655902,87.99,87.894,3.72005292]
[1772473030625,10.231,87.954,87.904,10.237]
[1772473030824,7.56592455,87.962,87.876,3.75991581]
[1772473032427,6.88655902,87.97,87.876,3.75991581]
[1772473032428,7.56592455,87.937,87.884,10.239]
[1772473032616,7.56592455,87.969,87.876,3.75991581]
[1772473032819,7.56592455,87.96,87.876,3.75991581]
[1772473033823,10.232,87.944,87.89,10.238]
[1772473035424,7.56592455,87.943,87.837,34.17]
[1772473035626,7.56592455,87.943,87.798,159.434]
[1772473035627,159.266,87.892,87.794,33.86542827]
[1772473035833,6.88655902,87.86,87.759,10.47016381]
[1772473036025,159.297,87.875,87.752,33.88542827]
[1772473036026,6.88655902,87.84,87.752,33.88542827]
[1772473036221,10.25,87.793,87.752,33.88542827]
[1772473036530,6.88655902,87.82,87.752,0.02]
[1772473036733,34.17,87.819,87.752,33.88123018]
[1772473037129,6.88655902,87.88,87.761,33.86368336]
[1772473037329,34.17,87.879,87.781,33.86368336]
[1772473037733,10.244,87.844,87.781,33.86368336]
[1772473038033,34.17,87.859,87.781,33.86368336]
[1772473038430,10.245,87.832,87.781,33.86368336]
[1772473039531,10.244,87.845,87.781,33.86368336]
[1772473039928,306.33243412,87.86,87.781,33.86368336]
[1772473040740,306.33243412,87.86,87.781,38.98869988]
[1772473040931,306.33243412,87.86,87.801,33.99162805]
[1772473041137,10.241,87.871,87.801,33.99162805]
[1772473042239,10.239,87.883,87.804,33.96732514]
[1772473043236,10.239,87.883,87.807,33.96894442]
[1772473043537,10.238,87.896,87.82,6.88655902]
[1772473043839,6.88655902,87.92,87.821,33.96894442]
[1772473044436,6.88655902,87.9,87.801,33.88434038]
[1772473045034,10.24,87.877,87.802,33.88545504]
[1772473045838,6.88655902,87.9,87.78,33.88545504]
[1772473046041,10.245,87.834,87.772,33.88545504]
[1772473046236,6.88655902,87.84,87.772,33.88545504]
[1772473046432,6.88655902,87.84,87.751,33.80867725]
[1772473046842,34.17,87.839,87.751,33.80867725]
[1772473047740,6.88655902,87.84,87.758,33.80935779]
[1772473048248,6.88655902,87.84,87.72,6.88655902]
[1772473048249,6.88655902,87.82,87.738,33.68663506]
[1772473049346,10.247,87.816,87.738,33.68663506]
[1772473050243,10.248,87.806,87.738,33.68663506]
[1772473050451,6.88655902,87.82,87.738,33.68663506]
[1772473052449,10.248,87.807,87.738,33.68663506]
[1772473053045,6.88655902,87.82,87.738,33.68663506]
[1772473053046,10.249,87.797,87.738,33.68663506]
[1772473053243,6.88655902,87.82,87.738,33.68663506]
[1772473053844,10.248,87.809,87.738,43.94263506]
[1772473054043,10.248,87.809,87.738,33.68663506]
[1772473054549,6.88655902,87.82,87.738,33.68663506]
[1772473054550,10.249,87.799,87.738,33.68663506]
[1772473055248,10.25,87.79,87.738,33.68663506]
[1772473057048,10.249,87.8,87.738,33.68663506]
[1772473058045,10.248,87.81,87.741,33.69676189]
[1772473059051,11.39,87.839,87.742,33.69683767]
[1772473060254,10.249,87.801,87.747,33.70121778]
[1772473060552,6.88655902,87.86,87.747,33.70121778]
[1772473060852,6.88655902,87.86,87.761,33.70121778]
[1772473061249,10.245,87.83,87.775,33.70130983]
[1772473062045,11.39,87.859,87.775,33.70130983]
[1772473062650,10.246,87.826,87.775,33.70130983]
[1772473062948,11.39,87.859,87.775,33.70130983]
[1772473063147,10.246,87.827,87.775,33.70130983]
[1772473063346,6.88655902,87.84,87.754,33.69340226]
[1772473063746,10.251,87.784,87.719,33.69340226]
[1772473064148,10.251,87.784,87.649,159.707]
[1772473064149,10.253,87.762,87.693,33.67848072]
[1772473064356,34.17,87.789,87.693,33.67848072]
[1772473064853,10.254,87.754,87.693,33.67848072]
[1772473065354,10.256,87.737,87.693,33.67848072]
[1772473065859,6.88655902,87.73,87.652,33.67847787]
[1772473066250,11.39,87.729,87.652,33.67847787]
[1772473066445,6.88655902,87.73,87.563,159.863]
[1772473066446,34.17,87.724,87.621,33.76308623]
[1772473066650,34.17,87.709,87.621,33.76308623]
[1772473067857,6.88655902,87.69,87.621,33.76308623]
[1772473068056,6.88655902,87.69,87.591,33.82921099]
[1772473068358,6.88655902,87.69,87.599,35.81471906]
[1772473068756,10.265,87.659,87.599,35.81471906]
[1772473069151,159.585,87.716,87.599,35.81471906]
[1772473069152,10.264,87.67,87.599,33.82921099]
[1772473069356,10.264,87.67,87.599,35.81512697]
[1772473070058,10.265,87.659,87.599,35.81512697]
[1772473070458,5.13122043,87.682,87.571,33.84119534]
[1772473070756,6.88655902,87.65,87.571,33.84119534]
[1772473071155,10.27,87.62,87.571,33.84119534]
[1772473071551,6.88655902,87.61,87.527,33.84176819]
[1772473071759,10.273,87.594,87.527,33.84176819]
[1772473072955,10.271,87.607,87.527,33.84176819]
[1772473073154,6.95975728,87.62,87.527,33.84176819]
[1772473073357,6.95975728,87.62,87.343,20.94588143]
[1772473073358,10.278,87.554,87.46,6.95975728]
[1772473073561,10.278,87.554,87.466,20.34640264]
[1772473073857,6.95975728,87.58,87.48,6.95975728]
[1772473074059,6.95975728,87.58,87.481,10.286]
[1772473074263,159.774,87.612,87.466,10.05840264]
[1772473074264,6.95975728,87.56,87.466,10.05840264]
[1772473074459,10.278,87.553,87.466,10.05840264]
[1772473074662,6.95975728,87.56,87.466,10.05840264]
[1772473074860,6.95975728,87.56,87.476,1.98859416]
[1772473074861,10.277,87.558,87.476,1.98859416]
[1772473075061,10.277,87.558,87.479,10.286]
[1772473075261,10.277,87.558,87.48,24.07367428]
[1772473075462,6.95975728,87.56,87.48,24.07367428]
[1772473075957,6.95975728,87.56,87.483,24.07367428]
[1772473076373,6.95975728,87.6,87.513,23.948386]
[1772473076763,6.95975728,87.6,87.476,1.98859416]
[1772473076764,6.95975728,87.56,87.477,23.948386]
[1772473076965,6.95975728,87.56,87.479,23.948386]
[1772473077164,10.275,87.573,87.479,23.948386]
[1772473077360,6.95975728,87.58,87.479,23.948386]
[1772473077869,17.23675728,87.56,87.479,23.948386]
[1772473078365,17.23675728,87.56,87.481,23.43244481]
[1772473078971,6.95975728,87.56,87.481,23.43244481]
[1772473079165,10.275,87.573,87.481,23.43244481]
[1772473079764,34.24,87.619,87.527,23.43023236]
[1772473079973,6.95975728,87.6,87.501,23.43023236]
[1772473080674,10.275,87.58,87.504,23.53598318]
[1772473081268,10.276,87.568,87.504,23.53598318]
[1772473081571,6.95975728,87.56,87.477,23.53421867]
[1772473082166,34.24,87.559,87.477,23.53421867]
[1772473082369,6.95975728,87.54,87.454,23.60016739]
[1772473082870,6.95975728,87.54,87.467,23.60016739]
[1772473083772,10.278,87.549,87.467,23.60016739]
[1772473083968,10.278,87.549,87.45,6.95975728]
[1772473083969,10.278,87.549,87.469,23.59868142]
[1772473084167,10.279,87.538,87.469,23.59868142]
[1772473085375,34.24,87.537,87.466,0.00040264]
[1772473085574,34.24,87.519,87.466,0.00040264]
[1772473086585,34.24,87.586,87.467,23.58660144]
[1772473086882,34.24,87.559,87.467,23.58660144]
[1772473087081,34.24,87.518,87.466,0.00040264]
[1772473087478,34.24,87.518,87.248,10.22462711]
[1772473087479,34.24,87.479,87.339,294.0]
[1772473087676,34.24,87.479,87.36,6.95975728]
[1772473087879,34.24,87.479,87.373,1.99080113]
[1772473088081,10.287,87.474,87.401,10.295]
[1772473088277,34.24,87.479,87.38,6.95975728]
[1772473088780,34.24,87.459,87.365,10.3]
[1772473088986,34.24,87.459,87.352,1.99090932]
[1772473089278,303.90246335,87.439,87.34,6.95975728]
[1772473089476,303.90246335,87.439,87.341,11.79523948]
[1772473089676,303.90246335,87.439,87.343,11.79523948]
[1772473089879,6.95975728,87.41,87.32,11.79523948]
[1772473090075,303.90246335,87.439,87.32,18.75499676]
[1772473090278,303.90246335,87.439,87.34,6.95975728]
[1772473090485,303.90246335,87.439,87.341,11.93514848]
[1772473090686,303.90246335,87.439,87.368,11.93514848]
[1772473091276,10.293,87.426,87.331,11.93400779]
[1772473091480,303.90246335,87.439,87.331,11.93400779]
[1772473091481,6.95975728,87.42,87.331,11.93400779]
[1772473091785,10.294,87.411,87.331,11.93400779]
[1772473091981,6.95975728,87.42,87.331,11.93400779]
[1772473092389,10.293,87.419,87.331,11.93400779]
[1772473092689,303.90246335,87.439,87.331,11.93400779]
[1772473092881,6.95975728,87.42,87.331,11.93400779]
[1772473093078,303.90246335,87.439,87.331,11.93400779]
[1772473093477,10.292,87.433,87.346,11.91842755]
[1772473093883,303.90246335,87.439,87.346,11.91842755]
[1772473094384,6.95975728,87.42,87.347,11.9155818]
[1772473094987,303.90246335,87.439,87.347,11.9155818]